bitfinex/quotes_SOLUSD_20220211
["timestamp","ask_amount","ask_price","bid_price","bid_amount"]
[1644546305440,0.04439719,104.47,104.4,15.918]
[1644546305641,1.35878805,104.49,104.4,23.92761265]
[1644546305842,1.31439086,104.49,104.41,1.75961265]
[1644546306042,1.31439086,104.49,104.41,12.88961265]
[1644546306241,1.31439086,104.49,104.41,17.38]
[1644546306544,46.45761071,104.48,104.42,34.86151181]
[1644546306743,47.77200157,104.48,104.42,35.11151181]
[1644546306942,46.45761071,104.48,104.42,35.11151181]
[1644546307144,46.45761071,104.48,104.4,11.13]
[1644546307342,4.787,104.47,104.4,6.0]
[1644546307544,6.10139086,104.47,104.4,6.0]
[1644546307742,6.10139086,104.47,104.38,10.785]
[1644546307942,0.04439719,104.47,104.38,4.785]
[1644546308242,0.04439719,104.47,104.39,48.71078694]
[1644546308443,34.22797276,104.46,104.39,48.71078694]
[1644546308643,34.22797276,104.46,104.39,54.71078694]
[1644546308843,34.22797276,104.46,104.39,54.96078694]
[1644546309242,34.22797276,104.46,104.39,56.71616245]
[1644546309844,34.22797276,104.46,104.39,54.96078694]
[1644546310746,35.54236362,104.46,104.39,54.96078694]
[1644546311044,34.22797276,104.46,104.39,54.96078694]
[1644546311247,35.54236362,104.46,104.39,54.96078694]
[1644546311446,34.22797276,104.46,104.39,54.96078694]
[1644546311644,35.54236362,104.46,104.39,54.96078694]
[1644546312646,35.54236362,104.46,104.39,56.71616245]
[1644546313148,34.22797276,104.46,104.39,56.71616245]
[1644546313546,35.54236362,104.46,104.39,56.71616245]
[1644546313950,35.54236362,104.46,104.39,6.0]
[1644546314246,35.54236362,104.46,104.37,1.75537551]
[1644546314247,1.31439086,104.44,104.37,1.75537551]
[1644546314447,1.31439086,104.44,104.36,4.788]
[1644546314648,1.31439086,104.43,104.36,4.788]
[1644546314848,43.52592401,104.42,104.36,48.40074815]
[1644546315247,43.52592401,104.42,104.36,48.65074815]
[1644546315646,43.52592401,104.42,104.36,5.038]
[1644546316047,44.84031487,104.42,104.36,0.25]
[1644546316249,44.84031487,104.42,104.34,43.1464]
[1644546316450,44.88471206,104.42,104.34,43.1464]
[1644546316650,44.88471206,104.42,104.35,34.95004644]
[1644546316852,44.88471206,104.42,104.35,35.20004644]
[1644546317059,44.84031487,104.42,104.35,35.20004644]
[1644546317249,44.88471206,104.42,104.35,35.20004644]
[1644546317651,1.31439086,104.41,104.35,35.20004644]
[1644546317852,41.99495514,104.4,104.35,41.20004644]
[1644546318051,41.99495514,104.4,104.35,0.25]
[1644546318350,41.99495514,104.4,104.34,11.039]
[1644546318551,41.99495514,104.4,104.34,6.25]
[1644546318751,43.309346,104.4,104.34,6.25]
[1644546318951,43.309346,104.4,104.34,0.25]
[1644546319152,41.99495514,104.4,104.34,41.84626639]
[1644546319357,43.309346,104.4,104.34,41.84626639]
[1644546319554,1.31439086,104.4,104.34,41.84626639]
[1644546319854,1.35878805,104.41,104.34,63.9787419]
[1644546320056,1.31439086,104.41,104.34,68.7687419]
[1644546320455,40.44176717,104.42,104.34,68.7687419]
[1644546320657,1.31439086,104.41,104.34,68.7687419]
[1644546326883,1.31439086,104.41,104.34,63.9787419]
[1644546327481,1.35878805,104.42,104.34,63.9787419]
[1644546327685,1.31439086,104.41,104.34,63.9787419]
[1644546328281,1.35878805,104.42,104.34,63.9787419]
[1644546328482,1.31439086,104.42,104.34,75.1087419]
[1644546328683,1.35878805,104.42,104.34,75.1087419]
[1644546328885,1.31439086,104.42,104.34,75.1087419]
[1644546329488,1.31439086,104.41,104.34,75.1087419]
[1644546329888,1.31439086,104.41,104.35,95.58]
[1644546330090,1.31439086,104.42,104.36,25.9518]
[1644546330290,1.35878805,104.44,104.36,145.95372449]
[1644546330488,1.31439086,104.44,104.37,6.54437551]
[1644546330688,1.31439086,104.44,104.38,11.13]
[1644546330889,1.31439086,104.43,104.39,15.80550037]
[1644546331189,1.31439086,104.44,104.39,47.84887588]
[1644546331389,1.31439086,104.45,104.4,1.75537551]
[1644546331590,1.35878805,104.45,104.4,1.75537551]
[1644546331791,1.31439086,104.45,104.4,8.00537551]
[1644546331989,1.31439086,104.45,104.4,22.37477551]
[1644546332192,1.31439086,104.45,104.41,41.59626639]
[1644546332390,1.31439086,104.45,104.41,41.84626639]
[1644546334492,1.31439086,104.46,104.41,43.6016419]
[1644546334702,1.31439086,104.46,104.41,49.6016419]
[1644546334898,1.31439086,104.47,104.41,49.6016419]
[1644546336100,52.2312,104.52,104.43,15.0]
[1644546336301,0.04471468,104.48,104.44,11.13]
[1644546336498,1.32594178,104.5,104.45,4.785]
[1644546336798,1.32594178,104.51,104.46,11.13]
[1644546337098,1.37065646,104.52,104.48,14.3593]
[1644546337297,1.32594178,104.52,104.49,35.24052022]
[1644546337698,1.32594178,104.52,104.49,35.49052022]
[1644546338598,1.50811678,104.53,104.49,0.25]
[1644546338801,1.32594178,104.52,104.48,6.25]
[1644546339100,1.32594178,104.52,104.48,0.25]
[1644546339299,1.32594178,104.52,104.47,20.6108]
[1644546339500,1.32594178,104.52,104.47,14.6108]
[1644546339701,1.32594178,104.52,104.47,52.27503099]
[1644546339898,1.50811678,104.53,104.47,52.27503099]
[1644546340098,1.50811678,104.53,104.47,63.40503099]
[1644546340700,0.182175,104.53,104.47,63.40503099]
[1644546340901,0.182175,104.53,104.47,69.40503099]
[1644546341103,0.182175,104.53,104.47,69.15503099]
[1644546341304,1.50811678,104.53,104.47,37.66423099]
[1644546341500,1.32594178,104.52,104.47,37.91423099]
[1644546341703,6.29211678,104.53,104.47,37.91423099]
[1644546341904,1.50811678,104.53,104.45,34.253]
[1644546342201,1.50811678,104.53,104.45,17.38]
[1644546342402,1.55283146,104.53,104.45,17.38]
[1644546342600,1.50811678,104.53,104.45,11.38]
[1644546342801,15.91623146,104.53,104.41,4.785]
[1644546343004,1.32594178,104.51,104.42,37.21649269]
[1644546343202,42.61919734,104.49,104.42,37.21649269]
[1644546343902,42.61919734,104.49,104.42,51.58419269]
[1644546344102,42.61919734,104.49,104.42,57.83419269]
[1644546344302,0.04471468,104.5,104.42,57.83419269]
[1644546344502,1.37065646,104.52,104.42,59.5895682]
[1644546344703,0.04471468,104.5,104.43,11.13]
[1644546344903,15.73685646,104.51,104.43,25.7467]
[1644546345303,48.04544403,104.5,104.44,18.87088321]
[1644546345806,48.04544403,104.5,104.44,19.12088321]
[1644546346604,48.04544403,104.5,104.44,33.48598321]
[1644546348109,15.73665646,104.51,104.44,33.48598321]
[1644546348309,21.73665646,104.51,104.44,33.48598321]
[1644546349006,43.99567918,104.5,104.44,33.48598321]
[1644546351809,1.37065646,104.51,104.44,35.24135872]
[1644546352009,1.37065646,104.51,104.44,52.37135872]
[1644546352210,0.04471468,104.51,104.44,52.37135872]
[1644546354533,45.44562107,104.51,104.44,52.37135872]
[1644546354719,46.77156285,104.51,104.44,33.50047551]
[1644546354911,1.32594178,104.5,104.44,6.25]
[1644546355113,6.11094178,104.5,104.42,1.75537551]
[1644546355315,6.15565646,104.5,104.42,7.75537551]
[1644546355514,6.15565646,104.5,104.42,1.75537551]
[1644546355715,35.13585854,104.49,104.42,54.52372164]
[1644546355914,36.46180032,104.49,104.42,22.12327551]
[1644546356313,1.32594178,104.48,104.42,16.37327551]
[1644546356515,1.32594178,104.48,104.42,14.6179]
[1644546356715,1.32594178,104.48,104.4,1.75537551]
[1644546356917,6.15765646,104.48,104.42,0.25]
[1644546357118,48.50786241,104.47,104.42,0.25]
[1644546357517,48.50786241,104.47,104.4,16.12527551]
[1644546357718,48.50786241,104.47,104.41,20.71979686]
[1644546358918,48.50786241,104.47,104.41,0.25]
[1644546359119,48.50786241,104.47,104.41,14.6192]
[1644546359318,48.50786241,104.47,104.41,0.25]
[1644546359518,1.32594178,104.46,104.41,0.25]
[1644546359718,1.32594178,104.46,104.4,2.00537551]
[1644546360124,43.28624695,104.45,104.4,2.00537551]
[1644546360318,43.28624695,104.45,104.4,0.25]
[1644546360522,43.28624695,104.45,104.39,47.8766]
[1644546360718,44.61218873,104.45,104.4,14.3705]
[1644546360920,43.28624695,104.45,104.4,14.3705]
[1644546361122,43.28624695,104.45,104.4,14.6205]
[1644546361720,44.61218873,104.45,104.4,14.6205]
[1644546362343,44.61218873,104.45,104.4,23.02667545]
[1644546363044,1.32594178,104.45,104.4,23.02667545]
[1644546363246,1.32594178,104.46,104.4,23.02667545]
[1644546363445,1.32594178,104.45,104.4,14.3705]
[1644546364644,46.97835421,104.45,104.4,14.3705]
[1644546364844,46.97835421,104.45,104.4,14.6205]
[1644546365144,46.97835421,104.45,104.4,14.3705]
[1644546365344,46.97835421,104.45,104.4,14.6205]
[1644546365545,1.32594178,104.45,104.4,14.6205]
[1644546365745,1.32594178,104.46,104.4,22.37587551]
[1644546365947,1.32594178,104.46,104.4,27.16287551]
[1644546366145,1.32594178,104.46,104.4,21.16287551]
[1644546366347,1.32594178,104.46,104.4,27.16287551]
[1644546366545,1.32594178,104.46,104.41,18.8222305]
[1644546366746,1.32594178,104.46,104.41,19.0722305]
[1644546366946,1.32594178,104.46,104.41,33.4410305]
[1644546367647,38.10717783,104.47,104.41,33.4410305]
[1644546368549,1.32594178,104.46,104.41,33.4410305]
[1644546368952,1.32594178,104.46,104.41,14.6188]
[1644546371952,43.50023206,104.45,104.41,14.6188]
[1644546374854,44.82617384,104.45,104.41,14.6188]
[1644546376961,44.82617384,104.45,104.41,14.3688]
[1644546377160,43.50023206,104.45,104.37,1.75537551]
[1644546377461,1.32594178,104.43,104.34,4.787]
[1644546377661,1.32594178,104.41,104.31,1.35044879]
[1644546377859,1.32594178,104.41,104.3,4.788]
[1644546378059,44.57398942,104.4,104.31,44.32401225]
[1644546378258,60.2812312,104.4,104.31,44.32401225]
[1644546378860,1.32594178,104.39,104.3,4.788]
[1644546379161,6.11694178,104.38,104.27,4.791]
[1644546379359,6.11694178,104.38,104.26,15.922]
[1644546379563,15.71094178,104.37,104.26,6.0]
[1644546379763,46.38632301,104.36,104.24,35.05333466]
[1644546379961,58.84226479,104.36,104.24,35.05333466]
[1644546380160,106.81246479,104.36,104.23,4.792]
[1644546380363,61.07348633,104.36,104.22,53.3614]
[1644546380766,67.07348633,104.36,104.22,58.35874798]
[1644546380962,14.3911,104.33,104.22,58.35874798]
[1644546381165,44.09423113,104.32,104.23,44.37350972]
[1644546381364,44.09423113,104.32,104.23,50.37350972]
[1644546381564,39.29923113,104.32,104.23,55.16850972]
[1644546382266,53.69333113,104.32,104.23,55.16850972]
[1644546382664,37.74514828,104.3,104.23,50.37350972]
[1644546382865,63.905,104.34,104.23,50.37350972]
[1644546383064,50.5172,104.35,104.23,50.37350972]
[1644546383263,45.7222,104.35,104.23,75.89440972]
[1644546383764,45.49016137,104.34,104.23,76.14440972]
[1644546384666,45.49016137,104.34,104.23,75.89440972]
[1644546384870,59.88066137,104.34,104.23,75.89440972]
[1644546385066,4.793,104.33,104.23,75.89440972]
[1644546385266,44.57258189,104.32,104.23,75.89440972]
[1644546385467,44.57258189,104.32,104.23,80.68740972]
[1644546386169,44.57258189,104.32,104.23,80.93740972]
[1644546387769,50.57258189,104.32,104.23,80.93740972]
[1644546387972,45.7222,104.35,104.23,80.93740972]
[1644546388168,50.5152,104.35,104.23,80.93740972]
[1644546388370,51.7222,104.35,104.23,80.93740972]
[1644546388768,15.923,104.38,104.23,80.93740972]
[1644546388968,35.65532598,104.34,104.24,22.8294]
[1644546389169,35.65532598,104.34,104.27,14.3844]
[1644546389369,35.65532598,104.34,104.28,35.30368204]
[1644546389570,10.793,104.38,104.28,46.43368204]
[1644546389768,6.0,104.38,104.28,52.68368204]
[1644546389971,28.2331,104.39,104.28,52.68368204]
[1644546390173,6.0,104.38,104.28,52.68368204]
[1644546390569,35.47494574,104.37,104.28,52.68368204]
[1644546390771,35.47494574,104.37,104.28,31.5133]
[1644546390970,40.26694574,104.37,104.28,31.5133]
[1644546392171,40.26694574,104.37,104.28,31.7633]
[1644546392369,40.26694574,104.37,104.28,11.38]
[1644546392572,40.26694574,104.37,104.28,0.25]
[1644546392773,40.26694574,104.37,104.27,48.57519254]
[1644546392972,54.65314574,104.37,104.27,48.57519254]
[1644546393371,54.65314574,104.37,104.27,62.96069254]
[1644546393973,49.86114574,104.37,104.27,6.25]
[1644546394172,49.86114574,104.37,104.27,0.25]
[1644546394371,49.86114574,104.37,104.26,53.4138]
[1644546394573,4.793,104.36,104.26,53.4138]
[1644546394973,34.30829019,104.35,104.26,93.44218168]
[1644546395675,34.30829019,104.35,104.26,189.02218168]
[1644546395874,40.30829019,104.35,104.26,107.82898168]
[1644546396274,34.30829019,104.35,104.27,4.793]
[1644546396673,34.30829019,104.35,104.28,16.05899422]
[1644546396877,34.30829019,104.35,104.28,22.30899422]
[1644546397075,34.30829019,104.35,104.28,16.30899422]
[1644546398476,4.793,104.37,104.28,16.30899422]
[1644546398678,23.6994,104.38,104.28,22.30899422]
[1644546398878,23.6994,104.38,104.28,49.58353317]
[1644546399078,29.6994,104.38,104.28,49.58353317]
[1644546399277,23.6994,104.38,104.28,47.82299422]
[1644546399479,43.51077358,104.37,104.28,47.82299422]
[1644546399678,48.30277358,104.37,104.28,47.82299422]
[1644546400681,48.30277358,104.37,104.28,17.38]
[1644546401281,48.30277358,104.37,104.28,11.38]
[1644546401680,48.30277358,104.37,104.28,51.63287688]
[1644546401881,57.89677358,104.37,104.28,51.63287688]
[1644546402281,57.89677358,104.37,104.28,57.63287688]
[1644546402883,57.89677358,104.37,104.28,51.63287688]
[1644546403408,57.89677358,104.37,104.28,57.63287688]
[1644546403605,63.89677358,104.37,104.28,11.38]
[1644546403807,63.89677358,104.37,104.28,0.25]
[1644546404007,4.792,104.36,104.27,0.25]
[1644546404307,19.1794,104.36,104.26,64.5438]
[1644546404708,36.98027723,104.35,104.27,41.80006099]
[1644546405110,36.98027723,104.35,104.27,48.05006099]
[1644546405310,36.98027723,104.35,104.27,42.05006099]
[1644546405909,36.98027723,104.35,104.26,61.5508]
[1644546406111,36.98027723,104.35,104.26,67.5508]
[1644546406311,36.98027723,104.35,104.26,61.5508]
[1644546406511,36.98027723,104.35,104.26,67.5508]
[1644546406711,36.98027723,104.35,104.26,61.5508]
[1644546406911,36.98027723,104.35,104.26,67.5508]
[1644546407114,4.793,104.34,104.25,0.024]
[1644546407314,1.32594178,104.33,104.25,0.024]
[1644546407513,6.11894178,104.32,104.25,0.024]
[1644546407814,1.32594178,104.32,104.22,0.024]
[1644546408013,41.02155834,104.31,104.22,34.29840418]
[1644546408215,41.02155834,104.31,104.23,14.4147]
[1644546408614,41.02155834,104.31,104.23,20.6647]
[1644546409018,41.02155834,104.31,104.24,21.81297172]
[1644546409414,41.02155834,104.31,104.24,0.024]
[1644546409614,41.02155834,104.31,104.23,20.3907]
[1644546409815,41.02155834,104.31,104.23,14.3907]
[1644546410016,41.02155834,104.31,104.23,20.3907]
[1644546410720,47.02155834,104.31,104.23,14.4147]
[1644546410916,47.02155834,104.31,104.23,14.6647]
[1644546411117,47.02155834,104.31,104.23,20.6647]
[1644546411717,41.02155834,104.31,104.23,20.6647]
[1644546412017,41.02155834,104.31,104.24,12.75169085]
[1644546412418,41.02155834,104.31,104.24,13.02569085]
[1644546412618,41.02155834,104.31,104.25,1.76053895]
[1644546412824,41.02155834,104.31,104.25,8.01053895]
[1644546413620,41.02155834,104.31,104.25,0.25]
[1644546413820,41.02155834,104.31,104.25,14.6389]
[1644546414020,41.02155834,104.31,104.26,36.30873439]
[1644546414419,41.02155834,104.31,104.25,14.4129]
[1644546414619,41.02155834,104.31,104.25,0.024]
[1644546414821,41.02155834,104.31,104.25,0.274]
[1644546415219,41.02155834,104.31,104.25,0.024]
[1644546415619,41.02155834,104.31,104.25,11.06939246]
[1644546416625,41.02155834,104.31,104.25,12.82993141]
[1644546416921,4.793,104.32,104.25,13.07993141]
[1644546417120,23.8457,104.33,104.25,19.07993141]
[1644546417320,29.8457,104.33,104.25,17.31939246]
[1644546417722,45.58959224,104.32,104.25,31.70839246]
[1644546417921,45.58959224,104.32,104.25,25.70839246]
[1644546418724,45.58959224,104.32,104.25,31.70839246]
[1644546419727,6.11894178,104.34,104.26,1.76053895]
[1644546419923,24.45344178,104.35,104.27,14.3856]
[1644546420125,6.0,104.34,104.27,14.3856]
[1644546420323,6.0,104.34,104.28,12.89053895]
[1644546420524,1.32594178,104.36,104.28,17.68353895]
[1644546420726,1.32594178,104.37,104.29,46.80252239]
[1644546420926,1.32594178,104.38,104.3,15.922]
[1644546421130,1.32594178,104.39,104.3,42.91423895]
[1644546421425,1.32594178,104.39,104.31,1.76053895]
[1644546421626,1.32594178,104.4,104.32,22.17539246]
[1644546421826,1.32594178,104.4,104.32,28.42539246]
[1644546422049,1.32594178,104.4,104.33,1.76053895]
[1644546422226,45.7977923,104.39,104.34,43.83004249]
[1644546422427,45.7977923,104.39,104.33,8.01053895]
[1644546423126,45.7977923,104.39,104.33,2.01053895]
[1644546423325,45.7977923,104.39,104.33,55.35508796]
[1644546423829,45.7977923,104.39,104.33,49.35508796]
[1644546424329,45.7977923,104.39,104.33,55.35508796]
[1644546425131,45.7977923,104.39,104.33,2.01053895]
[1644546425330,45.7977923,104.39,104.33,0.25]
[1644546425534,45.7977923,104.39,104.33,6.25]
[1644546425731,45.7977923,104.39,104.33,0.25]
[1644546425931,45.7977923,104.39,104.32,14.6296]
[1644546426130,45.7977923,104.39,104.32,53.26242154]
[1644546426333,45.7977923,104.39,104.32,53.01242154]
[1644546426732,51.7977923,104.39,104.32,53.01242154]
[1644546427634,1.32594178,104.4,104.32,60.77296049]
[1644546427834,1.32594178,104.4,104.32,65.81396049]
[1644546428134,1.32594178,104.41,104.32,65.81396049]
[1644546428733,41.21962246,104.4,104.32,65.81396049]
[1644546430256,41.21962246,104.4,104.32,21.18113895]
[1644546430458,41.21962246,104.4,104.32,5.041]
[1644546430459,42.54556424,104.4,104.32,5.041]
[1644546430659,48.54556424,104.4,104.32,5.041]
[1644546431257,4.791,104.39,104.32,5.041]
[1644546431460,45.96780631,104.38,104.32,5.041]
[1644546431657,45.96780631,104.38,104.3,62.74277373]
[1644546431857,45.96780631,104.38,104.3,16.14283895]
[1644546432058,45.96780631,104.38,104.29,24.1977]
[1644546432860,47.29374809,104.38,104.29,24.1977]
[1644546433059,47.29374809,104.38,104.29,69.65366975]
[1644546433560,36.67137564,104.36,104.29,69.65366975]
[1644546433762,36.67137564,104.36,104.29,84.28736975]
[1644546433964,36.67137564,104.36,104.29,38.8314]
[1644546434964,36.67137564,104.36,104.3,43.72985613]
[1644546435362,36.67137564,104.36,104.3,43.97985613]
[1644546435868,4.792,104.37,104.3,43.97985613]
[1644546436065,4.792,104.37,104.31,1.76053895]
[1644546436266,23.0997,104.38,104.31,2.01053895]
[1644546436569,23.0997,104.38,104.31,0.25]
[1644546436766,23.0997,104.38,104.32,1.76053895]
[1644546436965,61.01607181,104.38,104.32,14.11805872]
[1644546437166,61.01607181,104.38,104.32,1.76053895]
[1644546437367,61.01607181,104.38,104.31,4.791]
[1644546437568,65.80707181,104.38,104.3,32.26493895]
[1644546437767,65.80707181,104.38,104.3,26.51493895]
[1644546438167,65.80707181,104.38,104.3,60.82585383]
[1644546438368,65.80707181,104.38,104.3,75.20825383]
[1644546438569,65.80707181,104.38,104.3,40.89733895]
[1644546439571,71.80707181,104.38,104.3,83.37530264]
[1644546439772,67.01607181,104.38,104.3,89.37530264]
[1644546440572,67.01607181,104.38,104.3,83.37530264]
[1644546440771,61.01607181,104.38,104.3,88.41730264]
[1644546441575,61.01607181,104.38,104.3,94.41730264]
[1644546441777,61.01607181,104.38,104.3,83.62530264]
[1644546442179,61.01607181,104.38,104.3,89.62530264]
[1644546442380,23.0997,104.38,104.3,83.62530264]
[1644546442576,23.0997,104.38,104.3,89.62530264]
[1644546442776,23.0997,104.38,104.31,4.792]
[1644546442976,23.0997,104.38,104.33,14.3788]
[1644546443176,24.97274178,104.41,104.33,14.3788]
[1644546443376,7.32594178,104.41,104.34,13.35941221]
[1644546443777,1.32594178,104.41,104.35,1.76053895]
[1644546443976,1.32594178,104.42,104.35,16.13623895]
[1644546444177,1.32594178,104.42,104.35,33.51623895]
[1644546444479,1.32594178,104.44,104.36,89.77492868]
[1644546444691,1.32594178,104.45,104.37,11.13]
[1644546444880,1.32594178,104.45,104.38,15.97248617]
[1644546445080,1.32594178,104.45,104.38,17.73302512]
[1644546445280,1.32594178,104.45,104.38,23.98302512]
[1644546445479,1.32594178,104.45,104.4,35.48221383]
[1644546445781,1.32594178,104.45,104.4,35.73221383]
[1644546445979,44.28013998,104.45,104.4,35.48221383]
[1644546446179,44.28013998,104.45,104.4,35.73221383]
[1644546446981,44.28013998,104.45,104.38,20.3717]
[1644546447179,44.32485466,104.45,104.39,0.25]
[1644546447379,44.28013998,104.45,104.39,0.25]
[1644546447579,44.28013998,104.45,104.39,1.76053895]
[1644546447780,1.32594178,104.45,104.39,8.01053895]
[1644546448180,48.02815646,104.46,104.37,6.54853895]
[1644546448382,4.788,104.44,104.35,12.89053895]
[1644546448580,1.32594178,104.44,104.35,12.89053895]
[1644546448782,40.55415451,104.43,104.36,46.08692995]
[1644546449180,39.22821273,104.43,104.36,46.33692995]
[1644546449381,40.55415451,104.43,104.36,46.33692995]
[1644546449780,40.55415451,104.43,104.36,60.71112995]
[1644546449980,39.22821273,104.43,104.36,60.71112995]
[1644546452085,39.22821273,104.43,104.36,62.4716689]
[1644546454084,39.22821273,104.43,104.36,68.4716689]
[1644546454284,1.32594178,104.44,104.36,68.4716689]
[1644546455085,1.32594178,104.44,104.37,11.13]
[1644546455287,1.32594178,104.45,104.39,14.3705]
[1644546455486,1.32594178,104.45,104.4,35.20730653]
[1644546455686,48.02815646,104.46,104.4,35.20730653]
[1644546455886,47.98344178,104.46,104.4,37.21771973]
[1644546457788,47.98344178,104.46,104.4,51.58701973]
[1644546457987,1.32594178,104.46,104.41,1.7604132]
[1644546458188,1.32594178,104.47,104.41,1.7604132]
[1644546458390,1.32594178,104.48,104.41,2.0104132]
[1644546458890,1.32594178,104.48,104.42,22.64048257]
[1644546459089,1.32594178,104.48,104.42,33.77048257]
[1644546459288,44.48610615,104.48,104.43,1.7604132]
[1644546459688,48.50885646,104.5,104.43,2.0104132]
[1644546459890,48.46414178,104.5,104.43,2.0104132]
[1644546460690,46.42776606,104.49,104.43,16.3751132]
[1644546461093,46.42776606,104.49,104.44,1.7604132]
[1644546461291,46.42776606,104.49,104.44,2.0104132]
[1644546461994,46.42776606,104.49,104.44,37.21771973]
[1644546462397,46.42776606,104.49,104.44,2.0104132]
[1644546462795,46.42776606,104.49,104.43,14.3647]
[1644546462998,46.42776606,104.49,104.43,14.6147]
[1644546463311,46.42776606,104.49,104.43,16.3751132]
[1644546463515,1.32594178,104.5,104.44,13.34569461]
[1644546463912,1.32594178,104.5,104.45,1.7604132]
[1644546464114,0.04471468,104.51,104.45,1.7604132]
[1644546464311,7.37065646,104.52,104.45,2.0104132]
[1644546464511,36.55083689,104.52,104.46,34.95108112]
[1644546464714,42.50612221,104.52,104.45,1.7604132]
[1644546464914,42.50612221,104.52,104.44,25.4929]
[1644546465112,4.785,104.51,104.44,11.38]
[1644546465313,6.11094178,104.51,104.44,11.38]
[1644546465715,39.22793594,104.5,104.44,11.38]
[1644546467720,39.22793594,104.5,104.44,21.52516987]
[1644546467919,39.22793594,104.5,104.44,23.28558307]
[1644546468920,39.22793594,104.5,104.44,37.64868307]
[1644546469720,39.22793594,104.5,104.44,12.8904132]
[1644546469921,39.22793594,104.5,104.44,11.13]
[1644546470121,39.22793594,104.5,104.44,11.38]
[1644546470722,39.22793594,104.5,104.44,53.37295694]
[1644546470921,39.22793594,104.5,104.44,11.13]
[1644546471121,39.22793594,104.5,104.43,14.3646]
[1644546471321,44.01293594,104.5,104.43,14.6146]
[1644546471721,44.01293594,104.5,104.43,16.3750132]
[1644546471922,44.01293594,104.5,104.44,37.31424428]
[1644546472221,39.22793594,104.5,104.44,53.43825748]
[1644546472421,39.22793594,104.5,104.44,53.68825748]
[1644546472624,1.32594178,104.51,104.44,53.68825748]
[1644546472825,1.32594178,104.51,104.44,59.68825748]
[1644546473024,1.37065646,104.52,104.44,59.68825748]
[1644546473323,1.37065646,104.52,104.46,14.3611]
[1644546473527,49.46926443,104.52,104.46,33.13423162]
[1644546473724,49.42454975,104.52,104.45,35.8335]
[1644546474124,1.32594178,104.51,104.45,36.0835]
[1644546474727,41.98573906,104.5,104.45,36.0835]
[1644546474925,41.98573906,104.5,104.44,1.7604132]
[1644546475124,41.98573906,104.5,104.43,4.785]
[1644546475125,43.31168084,104.5,104.43,4.785]
[1644546475523,41.98573906,104.5,104.43,4.785]
[1644546475723,43.31168084,104.5,104.44,48.43822688]
[1644546475924,41.98573906,104.5,104.44,48.43822688]
[1644546476325,41.98573906,104.5,104.44,48.68822688]
[1644546476524,46.77073906,104.5,104.44,48.68822688]
[1644546476925,48.09668084,104.5,104.44,48.68822688]
[1644546477130,41.98573906,104.5,104.44,48.68822688]
[1644546478233,41.98573906,104.5,104.44,0.25]
[1644546478431,43.31168084,104.5,104.43,14.6144]
[1644546479232,43.31168084,104.5,104.43,54.94077065]
[1644546479733,41.98573906,104.5,104.43,56.69690732]
[1644546479933,41.98573906,104.5,104.43,67.82690732]
[1644546480134,1.32594178,104.51,104.43,67.82690732]
[1644546480334,1.32594178,104.51,104.44,4.785]
[1644546480535,1.32594178,104.51,104.45,14.3623]
[1644546481136,38.54370228,104.51,104.45,30.12330525]
[1644546481735,1.32594178,104.51,104.45,37.87944192]
[1644546481938,1.32594178,104.51,104.46,11.13]
[1644546482237,1.55283146,104.53,104.48,14.3567]
[1644546482438,1.50811678,104.53,104.48,25.4867]
[1644546482635,1.50811678,104.53,104.49,42.08250732]
[1644546482836,1.50811678,104.53,104.49,48.33250732]
[1644546483038,1.50811678,104.53,104.5,1.75613667]
[1644546483241,0.182175,104.53,104.51,17.38669997]
[1644546483640,0.182175,104.53,104.51,19.39283664]
[1644546483844,0.182175,104.53,104.52,15.76100525]
[1644546484038,0.182175,104.53,104.51,19.14283664]
[1644546484238,0.182175,104.53,104.51,19.39283664]
[1644546484939,0.182175,104.53,104.51,25.14283664]
[1644546485139,0.182175,104.53,104.51,25.39283664]
[1644546485339,0.182175,104.53,104.52,3.03219997]
[1644546485843,0.182175,104.53,104.52,17.63559997]
[1644546486041,0.182175,104.53,104.52,19.39173664]
[1644546486241,0.182175,104.53,104.52,25.39173664]
[1644546488745,0.182175,104.53,104.52,23.63559997]
[1644546489042,0.182175,104.53,104.52,17.63559997]
[1644546490348,0.182175,104.53,104.52,3.03219997]
[1644546490548,0.182175,104.53,104.52,3.28219997]
[1644546491147,0.182175,104.53,104.52,3.03219997]
[1644546491347,0.182175,104.53,104.52,3.28219997]
[1644546491748,0.182175,104.53,104.52,9.28219997]
[1644546491948,0.182175,104.53,104.52,5.03833664]
[1644546492149,0.182175,104.53,104.52,11.03833664]
[1644546492548,0.182175,104.53,104.52,15.82133664]
[1644546492750,1.05283146,104.58,104.52,30.17433664]
[1644546492947,1.00811678,104.58,104.52,36.52133664]